[Event "Betsys MČR v online bleskovém šachu 2021"]
[Site "Chess.com"]
[Date "2021.04.17"]
[Round "2"]
[White "jonvon640"]
[Black "pkozubik"]
[Result "1-0"]
[WhiteElo "1674"]
[BlackElo "1127"]
[TimeControl "180+1"]
[EndTime "9:18:15 PDT"]
[Termination "Uživatel jonvon640 zvítězil po vzdání soupeře"]

1. e4 {[%clk 0:03:00.9]} 1... c6 {[%clk 0:02:58.3]} 2. d4 {[%clk 0:02:58.3]}
2... d5 {[%clk 0:02:58.7]} 3. exd5 {[%clk 0:02:58.8]} 3... cxd5 {[%clk
0:02:58.6]} 4. Bd3 {[%clk 0:02:58.3]} 4... Nc6 {[%clk 0:02:57.7]} 5. c3 {[%clk
0:02:57.8]} 5... e5 {[%clk 0:02:51.9]} 6. Bb5 {[%clk 0:02:52.2]} 6... exd4
{[%clk 0:02:46.5]} 7. Qxd4 {[%clk 0:02:43.4]} 7... a6 {[%clk 0:02:17.5]} 8.
Bxc6+ {[%clk 0:02:17.4]} 8... bxc6 {[%clk 0:02:15.1]} 9. Nf3 {[%clk 0:02:09.8]}
9... c5 {[%clk 0:02:11.9]} 10. Qd1 {[%clk 0:02:08.6]} 10... Bg4 {[%clk
0:02:10.4]} 11. h3 {[%clk 0:02:06.3]} 11... Bh5 {[%clk 0:02:04.4]} 12. O-O
{[%clk 0:02:04.1]} 12... Be7 {[%clk 0:02:00.9]} 13. Re1 {[%clk 0:02:00.3]} 13...
Nf6 {[%clk 0:01:53.7]} 14. Qe2 {[%clk 0:01:57.9]} 14... Ra7 {[%clk 0:01:48.4]}
15. Bg5 {[%clk 0:01:49.1]} 15... O-O {[%clk 0:01:47]} 16. Nbd2 {[%clk
0:01:45.6]} 16... Re8 {[%clk 0:01:44]} 17. Bxf6 {[%clk 0:01:44.7]} 17... gxf6
{[%clk 0:01:36.7]} 18. Qd3 {[%clk 0:01:18.7]} 18... Bg6 {[%clk 0:01:30.1]} 19.
Qf1 {[%clk 0:01:13.4]} 19... Bd6 {[%clk 0:01:22.5]} 20. Rxe8+ {[%clk 0:01:10.2]}
20... Qxe8 {[%clk 0:01:22]} 21. Re1 {[%clk 0:01:10.4]} 21... Qd7 {[%clk
0:01:19.9]} 22. Nh4 {[%clk 0:01:01.2]} 22... Rb7 {[%clk 0:01:13]} 23. b3 {[%clk
0:00:58.9]} 23... Rb6 {[%clk 0:01:06.8]} 24. c4 {[%clk 0:00:52.8]} 24... Bf4
{[%clk 0:00:59.2]} 25. Ndf3 {[%clk 0:00:21]} 25... dxc4 {[%clk 0:00:59]} 26.
Qxc4 {[%clk 0:00:19.1]} 26... Bb8 {[%clk 0:00:40.8]} 27. Nxg6 {[%clk 0:00:18]}
27... hxg6 {[%clk 0:00:37.9]} 28. Qxc5 {[%clk 0:00:17.4]} 28... Rc6 {[%clk
0:00:32.7]} 29. Qe3 {[%clk 0:00:16.7]} 29... g5 {[%clk 0:00:29.2]} 30. Qe8+
{[%clk 0:00:16.8]} 30... Qxe8 {[%clk 0:00:27.4]} 31. Rxe8+ {[%clk 0:00:17.1]}
31... Kg7 {[%clk 0:00:27.4]} 32. Rxb8 {[%clk 0:00:17.5]} 32... Rc2 {[%clk
0:00:27.2]} 33. a4 {[%clk 0:00:16.3]} 33... Rb2 {[%clk 0:00:26.9]} 34. b4 {[%clk
0:00:15.2]} 34... Rb1+ {[%clk 0:00:26.2]} 35. Kh2 {[%clk 0:00:14.1]} 35... Kg6
{[%clk 0:00:26.7]} 36. Kg3 {[%clk 0:00:14]} 36... Kf5 {[%clk 0:00:26.9]} 37. b5
{[%clk 0:00:14.3]} 37... Rb4 {[%clk 0:00:26.2]} 38. b6 {[%clk 0:00:08.5]} 38...
Rxa4 {[%clk 0:00:24.6]} 39. b7 {[%clk 0:00:08.5]} 39... Rb4 {[%clk 0:00:24.3]}
40. h4 {[%clk 0:00:06.7]} 40... gxh4+ {[%clk 0:00:23.9]} 41. Nxh4+ {[%clk
0:00:07.3]} 41... Ke6 {[%clk 0:00:24.5]} 42. Nf3 {[%clk 0:00:06.7]} 42... a5
{[%clk 0:00:24]} 43. Re8+ {[%clk 0:00:05.9]} 43... Kd7 {[%clk 0:00:23.7]} 44.
b8=Q {[%clk 0:00:06.1]} 44... Rxb8 {[%clk 0:00:21.8]} 45. Rxb8 {[%clk
0:00:06.5]} 45... a4 {[%clk 0:00:22.1]} 46. Ra8 {[%clk 0:00:06.9]} 46... Kc6
{[%clk 0:00:21.7]} 47. Rxa4 {[%clk 0:00:04.8]} 47... Kb5 {[%clk 0:00:22.3]} 48.
Rf4 {[%clk 0:00:05]} 48... Kc5 {[%clk 0:00:22.4]} 49. Rxf6 {[%clk 0:00:05.2]}
49... Kd5 {[%clk 0:00:22]} 50. Rxf7 {[%clk 0:00:05.7]} 50... Ke6 {[%clk
0:00:22.8]} 51. Rf8 {[%clk 0:00:05.9]} 51... Kd5 {[%clk 0:00:22.8]} 52. Rf4
{[%clk 0:00:06.6]} 52... Ke6 {[%clk 0:00:23.6]} 53. Kg4 {[%clk 0:00:07.2]} 53...
Kd5 {[%clk 0:00:24.4]} 54. Kg5 {[%clk 0:00:07.9]} 54... Ke6 {[%clk 0:00:25.3]}
55. g4 {[%clk 0:00:08]} 55... Kd5 {[%clk 0:00:26.2]} 56. Kf5 {[%clk 0:00:08.5]}
56... Kc5 {[%clk 0:00:27.1]} 57. g5 {[%clk 0:00:08.9]} 57... Kd5 {[%clk
0:00:28]} 58. g6 {[%clk 0:00:09.5]} 58... Kd6 {[%clk 0:00:28.9]} 59. g7 {[%clk
0:00:10.1]} 59... Ke7 {[%clk 0:00:29.8]} 60. g8=Q {[%clk 0:00:10.1]} 60... Kd7
{[%clk 0:00:29]} 61. Qe6+ {[%clk 0:00:10.1]} 1-0

[Event "Betsys MČR v online bleskovém šachu 2021"]
[Site "Chess.com"]
[Date "2021.04.17"]
[Round "2"]
[White "CzechMerlin"]
[Black "Jaja15F"]
[Result "1-0"]
[WhiteElo "1668"]
[BlackElo "1110"]
[TimeControl "180+1"]
[EndTime "9:18:16 PDT"]
[Termination "Uživatel CzechMerlin zvítězil na čas"]

1. d4 {[%clk 0:03:00.9]} 1... e5 {[%clk 0:02:59.6]} 2. d5 {[%clk 0:03:00]} 2...
Nf6 {[%clk 0:02:57.7]} 3. c4 {[%clk 0:03:00]} 3... d6 {[%clk 0:02:56.3]} 4. Nc3
{[%clk 0:02:58.8]} 4... c6 {[%clk 0:02:55.1]} 5. Bg5 {[%clk 0:02:57.8]} 5... Be7
{[%clk 0:02:53]} 6. e4 {[%clk 0:02:54.8]} 6... cxd5 {[%clk 0:02:51.1]} 7. cxd5
{[%clk 0:02:53.6]} 7... Bg4 {[%clk 0:02:48.1]} 8. Be2 {[%clk 0:02:42.2]} 8...
Bxe2 {[%clk 0:02:47.4]} 9. Qxe2 {[%clk 0:02:40.8]} 9... Nbd7 {[%clk 0:02:27.7]}
10. Nf3 {[%clk 0:02:29]} 10... O-O {[%clk 0:02:27.2]} 11. O-O {[%clk 0:02:28.6]}
11... h6 {[%clk 0:02:26.8]} 12. Be3 {[%clk 0:02:26.7]} 12... Ng4 {[%clk
0:02:25.8]} 13. Bd2 {[%clk 0:02:24.5]} 13... Nc5 {[%clk 0:02:23.8]} 14. b4
{[%clk 0:02:17.1]} 14... Na6 {[%clk 0:02:21.9]} 15. a3 {[%clk 0:02:16.3]} 15...
Nc7 {[%clk 0:02:20.1]} 16. h3 {[%clk 0:02:11.4]} 16... Nf6 {[%clk 0:02:18.4]}
17. Rfc1 {[%clk 0:02:10.7]} 17... Rc8 {[%clk 0:02:16]} 18. Ne1 {[%clk
0:01:48.8]} 18... Qd7 {[%clk 0:02:14.8]} 19. f3 {[%clk 0:01:47]} 19... Rfe8
{[%clk 0:02:13.1]} 20. Nd1 {[%clk 0:01:43]} 20... Nb5 {[%clk 0:02:09.8]} 21. Nc2
{[%clk 0:01:33.8]} 21... Rc7 {[%clk 0:02:07.6]} 22. Nde3 {[%clk 0:01:33.2]}
22... Rec8 {[%clk 0:02:04.5]} 23. Ne1 {[%clk 0:01:27.4]} 23... Nd4 {[%clk
0:01:59.7]} 24. Qd3 {[%clk 0:01:22.2]} 24... Rxc1 {[%clk 0:01:46.6]} 25. Rxc1
{[%clk 0:01:21.5]} 25... Rxc1 {[%clk 0:01:40.1]} 26. Bxc1 {[%clk 0:01:20.5]}
26... Qc7 {[%clk 0:01:37.3]} 27. N1c2 {[%clk 0:01:16.7]} 27... Nxc2 {[%clk
0:01:22.5]} 28. Qxc2 {[%clk 0:01:14.7]} 28... Qxc2 {[%clk 0:01:21.2]} 29. Nxc2
{[%clk 0:01:15.6]} 29... Bd8 {[%clk 0:01:15.2]} 30. Be3 {[%clk 0:01:14.6]} 30...
a6 {[%clk 0:01:13.6]} 31. Na1 {[%clk 0:00:58.7]} 31... Bc7 {[%clk 0:01:12.2]}
32. Nb3 {[%clk 0:00:57.9]} 32... Nd7 {[%clk 0:01:09.5]} 33. Kf2 {[%clk
0:00:47.5]} 33... b6 {[%clk 0:01:04.1]} 34. Nd2 {[%clk 0:00:46.7]} 34... Kf8
{[%clk 0:01:01.1]} 35. Nc4 {[%clk 0:00:46.6]} 35... Ke8 {[%clk 0:00:55.1]} 36.
f4 {[%clk 0:00:38.4]} 36... b5 {[%clk 0:00:48.2]} 37. Nb2 {[%clk 0:00:28]} 37...
f6 {[%clk 0:00:40.9]} 38. Nd3 {[%clk 0:00:27.6]} 38... a5 {[%clk 0:00:35]} 39.
fxe5 {[%clk 0:00:27.4]} 39... dxe5 {[%clk 0:00:32.6]} 40. Kg3 {[%clk 0:00:27]}
40... axb4 {[%clk 0:00:30.9]} 41. Nxb4 {[%clk 0:00:27.2]} 41... Ke7 {[%clk
0:00:13.9]} 42. Kg4 {[%clk 0:00:27.1]} 42... Bb6 {[%clk 0:00:12]} 43. Bxb6
{[%clk 0:00:21]} 43... Nxb6 {[%clk 0:00:11.8]} 44. Kf5 {[%clk 0:00:21.9]} 44...
Nc4 {[%clk 0:00:10.2]} 45. g4 {[%clk 0:00:15]} 45... Nxa3 {[%clk 0:00:08.9]} 46.
h4 {[%clk 0:00:13.8]} 46... Nc4 {[%clk 0:00:08]} 47. g5 {[%clk 0:00:13.7]} 1-0

[Event "Betsys MČR v online bleskovém šachu 2021"]
[Site "Chess.com"]
[Date "2021.04.17"]
[Round "2"]
[White "rolkento"]
[Black "elftom"]
[Result "0-1"]
[WhiteElo "2254"]
[BlackElo "1947"]
[TimeControl "180+1"]
[EndTime "9:18:17 PDT"]
[Termination "Uživatel elftom zvítězil na čas"]

1. e4 {[%clk 0:03:00.9]} 1... c5 {[%clk 0:02:59.3]} 2. c3 {[%clk 0:03:00.7]}
2... g6 {[%clk 0:02:54.8]} 3. f4 {[%clk 0:02:58]} 3... Bg7 {[%clk 0:02:53.6]} 4.
Nf3 {[%clk 0:02:57.3]} 4... Nc6 {[%clk 0:02:53.1]} 5. Bb5 {[%clk 0:02:54.7]}
5... a6 {[%clk 0:02:50.1]} 6. Bxc6 {[%clk 0:02:52.9]} 6... dxc6 {[%clk
0:02:49.9]} 7. O-O {[%clk 0:02:51.3]} 7... c4 {[%clk 0:02:42.4]} 8. b3 {[%clk
0:02:44.6]} 8... cxb3 {[%clk 0:02:40.5]} 9. axb3 {[%clk 0:02:40.9]} 9... Qd3
{[%clk 0:02:32.3]} 10. e5 {[%clk 0:02:19]} 10... Bg4 {[%clk 0:02:25.9]} 11. h3
{[%clk 0:02:12.8]} 11... Bxf3 {[%clk 0:02:20.8]} 12. Rxf3 {[%clk 0:02:01.4]}
12... Qd7 {[%clk 0:01:55.9]} 13. d4 {[%clk 0:01:56.9]} 13... e6 {[%clk
0:01:55.7]} 14. Be3 {[%clk 0:01:56]} 14... h5 {[%clk 0:01:54]} 15. Nd2 {[%clk
0:01:55.3]} 15... Ne7 {[%clk 0:01:52.7]} 16. Nc4 {[%clk 0:01:47.6]} 16... Nd5
{[%clk 0:01:42.6]} 17. Nd6+ {[%clk 0:01:40.3]} 17... Ke7 {[%clk 0:01:24.4]} 18.
Qd3 {[%clk 0:01:27.6]} 18... Rhd8 {[%clk 0:01:08.2]} 19. c4 {[%clk 0:01:19.2]}
19... Nxe3 {[%clk 0:01:07.2]} 20. Qxe3 {[%clk 0:01:19.8]} 20... Qc7 {[%clk
0:01:07.5]} 21. g4 {[%clk 0:01:10.2]} 21... hxg4 {[%clk 0:01:05]} 22. hxg4
{[%clk 0:01:11.1]} 22... Rxd6 {[%clk 0:01:05.3]} 23. exd6+ {[%clk 0:01:10.7]}
23... Qxd6 {[%clk 0:01:05.9]} 24. Rd1 {[%clk 0:01:02.8]} 24... Rh8 {[%clk
0:00:56.4]} 25. Kg2 {[%clk 0:00:42.5]} 25... Kf8 {[%clk 0:00:43.5]} 26. Qe4
{[%clk 0:00:34.7]} 26... Qa3 {[%clk 0:00:36.4]} 27. Rh1 {[%clk 0:00:18.9]} 27...
Qb2+ {[%clk 0:00:34.8]} 28. Rf2 {[%clk 0:00:19.1]} 28... Qxd4 {[%clk 0:00:32.4]}
29. Rxh8+ {[%clk 0:00:16.2]} 29... Bxh8 {[%clk 0:00:31.6]} 30. Qxd4 {[%clk
0:00:15.8]} 30... Bxd4 {[%clk 0:00:31.7]} 31. Rd2 {[%clk 0:00:15]} 31... c5
{[%clk 0:00:32]} 32. Kf3 {[%clk 0:00:14.3]} 32... Ke7 {[%clk 0:00:31.8]} 33. Ke4
{[%clk 0:00:12.9]} 33... f5+ {[%clk 0:00:29.9]} 34. gxf5 {[%clk 0:00:12.1]}
34... gxf5+ {[%clk 0:00:29.1]} 35. Kf3 {[%clk 0:00:12.1]} 35... Kf6 {[%clk
0:00:27.4]} 36. Rh2 {[%clk 0:00:11.8]} 36... e5 {[%clk 0:00:25.3]} 37. fxe5+
{[%clk 0:00:09.7]} 37... Kxe5 {[%clk 0:00:25.1]} 38. Rh7 {[%clk 0:00:09.7]}
38... b5 {[%clk 0:00:24.7]} 39. Ra7 {[%clk 0:00:08.1]} 39... bxc4 {[%clk
0:00:23.5]} 40. bxc4 {[%clk 0:00:09]} 40... Bc3 {[%clk 0:00:22]} 41. Rxa6 {[%clk
0:00:08.7]} 41... Bb4 {[%clk 0:00:22.5]} 42. Ke3 {[%clk 0:00:06.4]} 42... f4+
{[%clk 0:00:22.3]} 43. Kd3 {[%clk 0:00:06.5]} 43... Kf5 {[%clk 0:00:21.6]} 44.
Ra8 {[%clk 0:00:06]} 44... Ke5 {[%clk 0:00:19.3]} 45. Re8+ {[%clk 0:00:05.7]}
45... Kf5 {[%clk 0:00:19.1]} 46. Rd8 {[%clk 0:00:05.7]} 46... Ba3 {[%clk
0:00:16.2]} 47. Rd5+ {[%clk 0:00:04.7]} 47... Kg4 {[%clk 0:00:15.1]} 48. Rd8
{[%clk 0:00:04.6]} 48... Kf3 {[%clk 0:00:14.6]} 49. Ra8 {[%clk 0:00:02.9]} 49...
Bb2 {[%clk 0:00:14.3]} 0-1

[Event "Betsys MČR v online bleskovém šachu 2021"]
[Site "Chess.com"]
[Date "2021.04.17"]
[Round "2"]
[White "hever99"]
[Black "SamikGame"]
[Result "1/2-1/2"]
[WhiteElo "2143"]
[BlackElo "1623"]
[TimeControl "180+1"]
[EndTime "9:18:18 PDT"]
[Termination "Remíza opakováním pozice"]

1. e4 {[%clk 0:03:00.9]} 1... e5 {[%clk 0:02:57.7]} 2. Bc4 {[%clk 0:02:59.9]}
2... Nf6 {[%clk 0:02:53.8]} 3. d3 {[%clk 0:02:58.9]} 3... Bc5 {[%clk 0:02:45.5]}
4. Nc3 {[%clk 0:02:56.1]} 4... d6 {[%clk 0:02:41.4]} 5. f4 {[%clk 0:02:51.3]}
5... Nbd7 {[%clk 0:02:31.7]} 6. Nf3 {[%clk 0:02:45.4]} 6... O-O {[%clk
0:02:28.4]} 7. Na4 {[%clk 0:02:41.3]} 7... exf4 {[%clk 0:02:22.9]} 8. Nxc5
{[%clk 0:02:27.6]} 8... Nxc5 {[%clk 0:02:22.4]} 9. Bxf4 {[%clk 0:02:28.2]} 9...
Be6 {[%clk 0:02:16]} 10. Bxe6 {[%clk 0:02:13.4]} 10... fxe6 {[%clk 0:02:16.2]}
11. Bg5 {[%clk 0:02:05.6]} 11... h6 {[%clk 0:02:12.6]} 12. Bh4 {[%clk
0:01:56.6]} 12... e5 {[%clk 0:02:08.3]} 13. O-O {[%clk 0:01:53.8]} 13... Qd7
{[%clk 0:02:00.4]} 14. Bf2 {[%clk 0:01:46.8]} 14... Ne6 {[%clk 0:01:55.5]} 15.
Be3 {[%clk 0:01:34.5]} 15... Ng4 {[%clk 0:01:50.5]} 16. Qd2 {[%clk 0:01:27.2]}
16... Nxe3 {[%clk 0:01:46.1]} 17. Qxe3 {[%clk 0:01:26.9]} 17... c6 {[%clk
0:01:38.8]} 18. d4 {[%clk 0:01:24.6]} 18... exd4 {[%clk 0:01:35.4]} 19. Nxd4
{[%clk 0:01:23.2]} 19... Nxd4 {[%clk 0:01:34.8]} 20. Qxd4 {[%clk 0:01:22.7]}
20... Qe6 {[%clk 0:01:33.7]} 21. Rxf8+ {[%clk 0:01:11.6]} 21... Rxf8 {[%clk
0:01:33.8]} 22. Rd1 {[%clk 0:01:11.4]} 22... Qxa2 {[%clk 0:01:28]} 23. c4 {[%clk
0:01:05.3]} 23... Qa4 {[%clk 0:01:10.6]} 24. h3 {[%clk 0:01:02]} 24... b6 {[%clk
0:00:59.3]} 25. Qd3 {[%clk 0:00:41.1]} 25... Qb4 {[%clk 0:00:50.2]} 26. Ra1
{[%clk 0:00:32.5]} 26... a5 {[%clk 0:00:46.2]} 27. Rb1 {[%clk 0:00:25.8]} 27...
Qc5+ {[%clk 0:00:39.5]} 28. Kh1 {[%clk 0:00:23]} 28... Rf2 {[%clk 0:00:35.7]}
29. Qc3 {[%clk 0:00:14]} 29... Qg5 {[%clk 0:00:28.7]} 30. Rg1 {[%clk 0:00:11.4]}
30... Qe5 {[%clk 0:00:20.8]} 31. Qxe5 {[%clk 0:00:10.5]} 31... dxe5 {[%clk
0:00:21.5]} 32. Rb1 {[%clk 0:00:06.8]} 32... a4 {[%clk 0:00:18.5]} 33. b3 {[%clk
0:00:06.5]} 33... a3 {[%clk 0:00:16.1]} 34. b4 {[%clk 0:00:06.7]} 34... a2
{[%clk 0:00:13]} 35. Ra1 {[%clk 0:00:06.5]} 35... Rb2 {[%clk 0:00:08.9]} 36. b5
{[%clk 0:00:05.5]} 36... cxb5 {[%clk 0:00:08.8]} 37. cxb5 {[%clk 0:00:05.9]}
37... Rxb5 {[%clk 0:00:09.5]} 38. Rxa2 {[%clk 0:00:06.2]} 38... Rb4 {[%clk
0:00:10.1]} 39. Ra6 {[%clk 0:00:06.1]} 39... b5 {[%clk 0:00:10.9]} 40. Rb6
{[%clk 0:00:06.1]} 40... Rxe4 {[%clk 0:00:11.1]} 41. Rxb5 {[%clk 0:00:05.9]}
41... Re1+ {[%clk 0:00:11.8]} 42. Kh2 {[%clk 0:00:05.5]} 42... e4 {[%clk
0:00:12.6]} 43. Kg3 {[%clk 0:00:05.3]} 43... e3 {[%clk 0:00:13.2]} 44. Re5
{[%clk 0:00:05.7]} 44... g5 {[%clk 0:00:12.3]} 45. Kf3 {[%clk 0:00:05.7]} 45...
Kg7 {[%clk 0:00:13]} 46. Rxe3 {[%clk 0:00:05.2]} 46... Rxe3+ {[%clk 0:00:13.7]}
47. Kxe3 {[%clk 0:00:05.5]} 47... Kf6 {[%clk 0:00:14.4]} 48. Kf3 {[%clk
0:00:05.8]} 48... Kf5 {[%clk 0:00:14.9]} 49. g4+ {[%clk 0:00:06.7]} 49... Ke5
{[%clk 0:00:15.2]} 50. Ke3 {[%clk 0:00:07]} 50... Kd6 {[%clk 0:00:13.6]} 51. Kd4
{[%clk 0:00:05.7]} 51... Ke6 {[%clk 0:00:14.3]} 52. Ke4 {[%clk 0:00:05.9]} 52...
Kf6 {[%clk 0:00:14.9]} 53. Kf3 {[%clk 0:00:05.3]} 53... Ke5 {[%clk 0:00:15.1]}
54. Ke3 {[%clk 0:00:05.5]} 54... Kd5 {[%clk 0:00:15.7]} 55. Kd3 {[%clk
0:00:05.6]} 55... Ke5 {[%clk 0:00:16.3]} 56. Ke3 {[%clk 0:00:05.8]} 1/2-1/2

[Event "Betsys MČR v online bleskovém šachu 2021"]
[Site "Chess.com"]
[Date "2021.04.17"]
[Round "2"]
[White "RadosC"]
[Black "tomasPardubice"]
[Result "1-0"]
[WhiteElo "2524"]
[BlackElo "2075"]
[TimeControl "180+1"]
[EndTime "9:18:20 PDT"]
[Termination "Uživatel RadosC zvítězil po vzdání soupeře"]

1. e4 {[%clk 0:03:00.9]} 1... c5 {[%clk 0:02:59.5]} 2. Nf3 {[%clk 0:03:00.5]}
2... d6 {[%clk 0:02:59.4]} 3. d4 {[%clk 0:03:00.2]} 3... cxd4 {[%clk 0:02:59.7]}
4. Nxd4 {[%clk 0:03:01.1]} 4... Nf6 {[%clk 0:02:59.6]} 5. Nc3 {[%clk 0:03:01.2]}
5... a6 {[%clk 0:02:59.4]} 6. h3 {[%clk 0:03:00.7]} 6... e6 {[%clk 0:02:59]} 7.
g4 {[%clk 0:02:59.9]} 7... d5 {[%clk 0:02:59.4]} 8. exd5 {[%clk 0:02:55.2]} 8...
Nxd5 {[%clk 0:02:58]} 9. Nde2 {[%clk 0:02:51.2]} 9... Bb4 {[%clk 0:02:55.9]} 10.
Bd2 {[%clk 0:02:46]} 10... O-O {[%clk 0:02:52.8]} 11. Bg2 {[%clk 0:02:45.7]}
11... Nxc3 {[%clk 0:02:52.7]} 12. Nxc3 {[%clk 0:02:44.4]} 12... Nc6 {[%clk
0:02:51.9]} 13. O-O {[%clk 0:02:41]} 13... e5 {[%clk 0:02:51.5]} 14. a3 {[%clk
0:02:37.1]} 14... Be7 {[%clk 0:02:48.2]} 15. Be3 {[%clk 0:02:34.1]} 15... Be6
{[%clk 0:02:47]} 16. Nd5 {[%clk 0:02:32.6]} 16... Bxd5 {[%clk 0:02:24.4]} 17.
Bxd5 {[%clk 0:02:30.3]} 17... Rc8 {[%clk 0:02:24]} 18. c3 {[%clk 0:02:28]} 18...
Kh8 {[%clk 0:02:12.2]} 19. Qf3 {[%clk 0:02:25.8]} 19... Qc7 {[%clk 0:02:07.7]}
20. Rad1 {[%clk 0:02:15.1]} 20... Rcd8 {[%clk 0:01:54.7]} 21. Qf5 {[%clk
0:02:05]} 21... g6 {[%clk 0:01:48]} 22. Qf3 {[%clk 0:02:03.5]} 22... f5 {[%clk
0:01:45.6]} 23. Bh6 {[%clk 0:01:55.1]} 23... fxg4 {[%clk 0:01:38.2]} 24. Qxg4
{[%clk 0:01:54.7]} 24... Rf6 {[%clk 0:01:34.3]} 25. Rd2 {[%clk 0:01:28.7]} 25...
Rfd6 {[%clk 0:01:34]} 26. Rfd1 {[%clk 0:01:24.6]} 26... Nd4 {[%clk 0:01:20.6]}
27. c4 {[%clk 0:01:08.5]} 27... Bf6 {[%clk 0:01:12.4]} 28. f4 {[%clk 0:01:03.9]}
28... Nf5 {[%clk 0:01:08.9]} 29. Bg5 {[%clk 0:00:54.5]} 29... Bxg5 {[%clk
0:01:05]} 30. Qxg5 {[%clk 0:00:48.8]} 30... exf4 {[%clk 0:00:51]} 31. Qxf4
{[%clk 0:00:47.4]} 31... Qg7 {[%clk 0:00:39.2]} 32. Kh2 {[%clk 0:00:45.6]} 32...
Rf6 {[%clk 0:00:34.7]} 33. Bg2 {[%clk 0:00:40]} 33... Rdf8 {[%clk 0:00:33.8]}
34. Rd7 {[%clk 0:00:38.3]} 34... R6f7 {[%clk 0:00:34.1]} 35. Rxf7 {[%clk
0:00:37.7]} 35... Qxf7 {[%clk 0:00:32.2]} 36. Qe5+ {[%clk 0:00:37.7]} 36... Qg7
{[%clk 0:00:26.5]} 37. Qxg7+ {[%clk 0:00:37.4]} 37... Kxg7 {[%clk 0:00:26.2]}
38. Rd7+ {[%clk 0:00:37.5]} 38... Kh6 {[%clk 0:00:21.5]} 39. Rxb7 {[%clk
0:00:37.2]} 39... Ne3 {[%clk 0:00:21.7]} 40. Bd5 {[%clk 0:00:27.2]} 40... Rf2+
{[%clk 0:00:20.8]} 41. Kg3 {[%clk 0:00:26.9]} 41... Rd2 {[%clk 0:00:20.5]} 42.
Bg8 {[%clk 0:00:23.9]} 42... Nf5+ {[%clk 0:00:20.3]} 43. Kf4 {[%clk 0:00:23.6]}
43... Rd4+ {[%clk 0:00:18.8]} 44. Ke5 {[%clk 0:00:22.6]} 44... Rd3 {[%clk
0:00:18.2]} 45. Rxh7+ {[%clk 0:00:21.5]} 45... Kg5 {[%clk 0:00:18.4]} 46. Rb7
{[%clk 0:00:20.6]} 46... Rxh3 {[%clk 0:00:16.8]} 47. c5 {[%clk 0:00:20.3]} 47...
Re3+ {[%clk 0:00:15.9]} 48. Kd5 {[%clk 0:00:20.4]} 48... Rd3+ {[%clk 0:00:15.3]}
49. Kc4 {[%clk 0:00:20.2]} 49... Rd2 {[%clk 0:00:15.2]} 50. Kc3 {[%clk
0:00:18.9]} 50... Rd1 {[%clk 0:00:13.6]} 51. Bb3 {[%clk 0:00:18.4]} 51... Rd8
{[%clk 0:00:11.6]} 52. Bc2 {[%clk 0:00:17.3]} 52... Kf4 {[%clk 0:00:08.9]} 53.
b4 {[%clk 0:00:16]} 53... Rg8 {[%clk 0:00:03.7]} 54. Rb6 {[%clk 0:00:15.6]} 1-0

[Event "Betsys MČR v online bleskovém šachu 2021"]
[Site "Chess.com"]
[Date "2021.04.17"]
[Round "2"]
[White "SajdlJosef"]
[Black "TrickyPeat"]
[Result "0-1"]
[WhiteElo "1883"]
[BlackElo "2215"]
[TimeControl "180+1"]
[EndTime "9:18:20 PDT"]
[Termination "Uživatel TrickyPeat zvítězil na čas"]

1. d4 {[%clk 0:02:59.3]} 1... Nf6 {[%clk 0:02:58.8]} 2. Nf3 {[%clk 0:02:59]}
2... g6 {[%clk 0:02:57.5]} 3. Bf4 {[%clk 0:02:59.4]} 3... Bg7 {[%clk 0:02:56.9]}
4. e3 {[%clk 0:02:59.9]} 4... d6 {[%clk 0:02:56.8]} 5. Nbd2 {[%clk 0:03:00.1]}
5... O-O {[%clk 0:02:57.2]} 6. Bc4 {[%clk 0:02:58.2]} 6... c6 {[%clk 0:02:55.1]}
7. O-O {[%clk 0:02:52.4]} 7... Nbd7 {[%clk 0:02:53.3]} 8. c3 {[%clk 0:02:47.8]}
8... Nh5 {[%clk 0:02:52.6]} 9. Bg5 {[%clk 0:02:46]} 9... h6 {[%clk 0:02:51.5]}
10. Bh4 {[%clk 0:02:45]} 10... Ndf6 {[%clk 0:02:36.9]} 11. e4 {[%clk 0:02:19.6]}
11... g5 {[%clk 0:02:34.4]} 12. Bg3 {[%clk 0:02:18.5]} 12... Nxg3 {[%clk
0:02:33.7]} 13. hxg3 {[%clk 0:02:13.2]} 13... d5 {[%clk 0:02:25.1]} 14. Bd3
{[%clk 0:02:07.6]} 14... dxe4 {[%clk 0:02:23.1]} 15. Nxe4 {[%clk 0:02:06.1]}
15... Nxe4 {[%clk 0:02:22.5]} 16. Bxe4 {[%clk 0:02:05]} 16... Bg4 {[%clk
0:02:15.3]} 17. Qc2 {[%clk 0:01:58.4]} 17... Qd6 {[%clk 0:02:12.4]} 18. Rfe1
{[%clk 0:01:47.8]} 18... Rad8 {[%clk 0:02:10.1]} 19. Bf5 {[%clk 0:01:39.4]}
19... Bxf5 {[%clk 0:02:08.6]} 20. Qxf5 {[%clk 0:01:37.2]} 20... e6 {[%clk
0:02:08.3]} 21. Qe4 {[%clk 0:01:31.9]} 21... Qd5 {[%clk 0:02:02.5]} 22. Qxd5
{[%clk 0:01:29.8]} 22... cxd5 {[%clk 0:02:02]} 23. Ne5 {[%clk 0:01:27.4]} 23...
Rd6 {[%clk 0:02:00.3]} 24. Nd3 {[%clk 0:01:22.6]} 24... Rc8 {[%clk 0:01:59]} 25.
f4 {[%clk 0:01:19.2]} 25... Rb6 {[%clk 0:01:55.3]} 26. Re2 {[%clk 0:01:16.8]}
26... a5 {[%clk 0:01:51.7]} 27. Kf2 {[%clk 0:01:12.5]} 27... a4 {[%clk
0:01:49.3]} 28. a3 {[%clk 0:01:10.4]} 28... Rb5 {[%clk 0:01:40.3]} 29. Rh1
{[%clk 0:01:05.4]} 29... Rc6 {[%clk 0:01:30.9]} 30. Rh5 {[%clk 0:01:00.1]} 30...
gxf4 {[%clk 0:01:28.4]} 31. gxf4 {[%clk 0:00:58.2]} 31... Rc8 {[%clk 0:01:22.5]}
32. Kf3 {[%clk 0:00:55.5]} 32... Rb6 {[%clk 0:01:17.9]} 33. g4 {[%clk
0:00:53.8]} 33... Rf8 {[%clk 0:01:12.8]} 34. Reh2 {[%clk 0:00:48.8]} 34... f6
{[%clk 0:01:08.5]} 35. Re2 {[%clk 0:00:39.3]} 35... Rd6 {[%clk 0:00:58.9]} 36.
Kg3 {[%clk 0:00:38.6]} 36... Kh7 {[%clk 0:00:52.9]} 37. Kf3 {[%clk 0:00:37.4]}
37... Kg6 {[%clk 0:00:49.6]} 38. Kg3 {[%clk 0:00:28.4]} 38... f5 {[%clk
0:00:46.4]} 39. Rh4 {[%clk 0:00:24.5]} 39... fxg4 {[%clk 0:00:44.6]} 40. Rxg4+
{[%clk 0:00:23.5]} 40... Kh7 {[%clk 0:00:44]} 41. Rg2 {[%clk 0:00:21]} 41... Rd7
{[%clk 0:00:42.7]} 42. Kf3 {[%clk 0:00:19.9]} 42... Rdf7 {[%clk 0:00:41.7]} 43.
Ke3 {[%clk 0:00:18.5]} 43... Bf6 {[%clk 0:00:40.1]} 44. Nc5 {[%clk 0:00:16.5]}
44... Re7 {[%clk 0:00:32.8]} 45. Nxa4 {[%clk 0:00:15]} 45... Bh8 {[%clk
0:00:28.2]} 46. Nc5 {[%clk 0:00:14.2]} 46... b6 {[%clk 0:00:23.8]} 47. Nd3
{[%clk 0:00:11.9]} 47... Rg7 {[%clk 0:00:20.6]} 48. Rxg7+ {[%clk 0:00:09.6]}
48... Bxg7 {[%clk 0:00:20.3]} 49. Ne5 {[%clk 0:00:07.5]} 49... Rf5 {[%clk
0:00:17]} 50. Kf3 {[%clk 0:00:05.1]} 50... Rh5 {[%clk 0:00:15.7]} 51. Kg4 {[%clk
0:00:02.8]} 51... Rh1 {[%clk 0:00:14.1]} 52. Kf3 {[%clk 0:00:02.1]} 52... Rf1+
{[%clk 0:00:13.2]} 0-1